Cogmind - Beta 16 @@@ ROGUE MODE // 2025.11.20 @ 18:18:50 Player: pappous Result: Destroyed self with Improved Grenade Launcher Performance ------------- Evolutions (1) 500 Regions Visited (4) 800 Robots Destroyed (56) 280 Value Destroyed (2527) 2527 Prototype IDs (0) 0 Alien Tech Used (0) 0 Bonus (971) 971 TOTAL SCORE: 5078 Bonus ------- High Alert Combat Kills 211 Follower Combat Kills 60 Entered Garrisons 200 Used RIF Installer 500 Cogmind --------- Core Integrity 0/400 Matter 129/300 Energy 250/250 System Corruption 1% Temperature Cool (0) Movement Treading (240) Ox1 Location -9/Garrison Parts ------- > --- POWER (1) -------- Ion Engine > --- PROPULSION (2) --- Light Treads Improved Treads > --- UTILITY (4) ------ High-capacity Storage Unit Signal Interpreter Seismic Detector (fused) Improved Targeting Computer > --- WEAPON (2) ------- Shotgun Improved Grenade Launcher > --- INVENTORY (20) --- Ion Engine Light Treads Wheel Heat Sink Huge Storage Unit Compact Matter Pod (150) Sensor Array Signal Interpreter Signal Interpreter Terrain Scanner Improved Targeting Computer Utility Shielding Relay Coupler [Grunt] (31) Relay Coupler [Sentry] (22) Relay Coupler [Hunter] (18) Improved Light Cannon Improved Light Cannon Improved Grenade Launcher Peak State ------------ > --- POWER ------------ Ion Engine > --- PROPULSION ------- Light Treads Improved Treads > --- UTILITY ---------- High-capacity Storage Unit Signal Interpreter Seismic Detector Improved Targeting Computer > --- WEAPON ----------- Beam Rifle Improved Grenade Launcher > --- INVENTORY -------- Ion Engine Ion Engine Light Treads Wheel Heat Sink Huge Storage Unit Compact Matter Pod Sensor Array Signal Interpreter Signal Interpreter Terrain Scanner Improved Targeting Computer Utility Shielding Relay Coupler [Grunt] Relay Coupler [Hunter] Heavy Assault Rifle Shotgun Improved Light Cannon Improved Light Cannon Improved Grenade Launcher [Rating: 17] Favorites ----------- Power Ion Engine Engine Ion Engine Propulsion Light Treads Treads Light Treads Wheel Wheel Utility Seismic Detector Device Seismic Detector Storage High-capacity Storage Unit Processor Signal Interpreter Protection Light Armor Plating Weapon EM Pulse Gun Energy Gun EM Pulse Gun Ballistic Gun Assault Rifle Launcher Improved Grenade Launcher Impact Weapon Hammer Build | -11 -10 -9 -9 -9 ------- Run | Yrd Mat Mat Sto Gar Slots Evolved 2 | . . 2 . . Power . | . . . . . Propulsion . | . . . . . Utility 2 | . . 2 . . Weapon . | . . . . . Parts Attached 34 | 7 5 16 . 6 Power 4 | 1 . 2 . 1 Engine 4 | 1 . 2 . 1 Core . | . . . . . Reactor . | . . . . . Propulsion 9 | 2 1 4 . 2 Treads 8 | 1 1 4 . 2 Leg . | . . . . . Wheel 1 | 1 . . . . Hover . | . . . . . Flight . | . . . . . Utility 7 | 1 3 3 . . Device 1 | . 1 . . . Storage 3 | 1 2 . . . Processor 2 | . . 2 . . Hackware . | . . . . . Protection 1 | . . 1 . . Artifact . | . . . . . Weapon 14 | 3 1 7 . 3 Energy Gun 6 | 3 . 3 . . Energy Cannon . | . . . . . Ballistic Gun 5 | . . 4 . 1 Ballistic Cannon . | . . . . . Launcher 2 | . . . . 2 Special Weapon . | . . . . . Impact Weapon 1 | . 1 . . . Slashing Weapon . | . . . . . Piercing Weapon . | . . . . . Special Melee Weapon . | . . . . . Unidentified Prototypes . | . . . . . Parts Lost 11 | . 1 6 . 4 Power 1 | . . . . 1 Propulsion 4 | . 1 2 . 1 Utility . | . . . . . Weapon 6 | . . 4 . 2 Highest Loss Streak 2 | . 1 2 . 2 To Critical Strikes . | . . . . . Average Backups 16 | 3 11 17 20 19 Power 1 | . 1 1 2 1 Propulsion 2 | 1 2 3 2 1 Utility 8 | . 4 8 11 11 Weapon 4 | . 3 4 5 4 Tool/Special . | . . . . . Unused Backups 21 | . . 3 . 18 Power 1 | . . . . 1 Propulsion 2 | . . . . 2 Utility 13 | . . . . 13 Weapon 5 | . . 3 . 2 Tool/Special . | . . . . . Average Slot Usage (%) 98 | . 94 99 100 99 Engine 11 | . 14 11 11 10 Treads 21 | . 18 21 22 22 Wheel 2 | . 9 . . . Device 10 | . 9 11 11 11 Storage 11 | . 14 11 11 11 Processor 14 | . . 16 22 22 Protection 2 | . . 5 . . Energy Gun 12 | . 26 10 11 7 Ballistic Gun 7 | . . 10 11 9 Launcher 2 | . . . . 5 Peak Build Rating 17 | 6 8 15 15 17 Average Rating 12 | 3 7 11 15 16 On Entrance 8 | . 6 8 15 15 Avg Prop Armor Cover (%) 11 | 18 11 . . . Naked Turns . | . . . . . Heaviest Build 94 | 14 94 56 52 55 Greatest Support 43 | 10 40 40 40 43 Greatest Overweight (x) 9 | 1 9 1 1 1 Average Overweight (x) 1 | . 2 1 1 1 Largest Inventory Capacity 25 | 8 25 20 20 20 Average Capacity 18 | 5 16 20 20 20 Most Carried 20 | 5 18 20 20 20 Average Carried 16 | 3 11 17 20 19 Final Capacity 20 | 8 20 20 20 20 Final Carried 20 | 4 18 20 20 18 Class Distribution -------------------- 75% | Mutant 24% | Scavenger-Mutant Dominant Class ---------------- Mutant | -10/Materials Mutant | -9/Materials Scavenger-Mutant | -9/Storage Scavenger-Mutant | -9/Garrison Resources | -11 -10 -9 -9 -9 ----------- Run | Yrd Mat Mat Sto Gar Matter Collected 1413 | 227 198 482 . 506 Remotely . | . . . . . Salvage Created 1973 | . 548 779 . 646 Parts 126 | . 33 47 . 46 Haulers Intercepted . | . . . . . Recyclers Shooed 1 | . 1 . . . Parts Field Recycled . | . . . . . Retrieved Matter . | . . . . . Parts Self-Destructed . | . . . . . Prevented . | . . . . . Parts Restored . | . . . . . Kills | -11 -10 -9 -9 -9 ------- Run | Yrd Mat Mat Sto Gar Combat Hostiles Destroyed 51 | . 11 16 . 24 Guns 39 | . 9 16 . 14 AOE 12 | . 2 . . 10 Classes Destroyed 7 | . 4 3 . . Worker 2 | . 2 . . . Recycler 2 | . 2 . . . Mechanic 1 | . . 1 . . Swarmer 11 | . 5 . . 6 Grunt 27 | . 6 9 . 12 Duelist 2 | . . 2 . . Sentry 11 | . . 5 . 6 Best Kill Streak 7 | . 7 3 . 5 Combat Bots Only 5 | . 5 3 . 5 Max Kills in Single Turn 2 | . 2 1 . 2 Gunslinging . | . . . . . Exploded 2 | . 1 . . 2 Melee . | . . . . . Uniques/NPCs Destroyed . | . . . . . Combat | -11 -10 -9 -9 -9 -------- Run | Yrd Mat Mat Sto Gar Hostile Shots Fired 237 | . 42 102 . 93 Missed 51 | . 9 17 . 25 Hits 186 | . 33 85 . 68 Melee 7 | . . 7 . . Projectile 179 | . 33 78 . 68 Critical Strikes 5 | . . 3 . 2 Damage Taken 2457 | . 372 1171 . 914 Core 455 | . 55 208 . 192 Absorbed by Shields . | . . . . . Core Remaining (%) 89 | 100 78 . . . Volleys Fired 173 | . 33 74 . 66 Largest 2 | . 2 2 . 2 Hottest 92 | . 80 80 . 92 Shots Fired 318 | . 66 135 . 117 Gun 297 | . 66 135 . 96 Cannon . | . . . . . Launcher 21 | . . . . 21 Special . | . . . . . Kinetic 132 | . . 84 . 48 Thermal 77 | . . 29 . 48 Explosive 21 | . . . . 21 Electromagnetic 88 | . 66 22 . . Robot Hit Streak 26 | . 6 26 . 26 Robot Miss Streak 5 | . 5 3 . 2 Penetration Max . | . . . . . Secondary Targets 3 | . 1 2 . . Max Gunslinging Chain 1 | . 1 1 . . Shots Hit Robots 215 | . 37 110 . 68 Core Hits 96 | . 18 37 . 41 Critical Kills . | . . . . . Critical Parts Destroyed 1 | . . . . 1 Critical Strikes 10 | . . 3 . 7 Burn 8 | . . 2 . 6 Destroy 1 | . . . . 1 Corrupt 1 | . . 1 . . Melee Attacks 1 | . 1 . . . Impact 1 | . 1 . . . Slashing . | . . . . . Piercing . | . . . . . Sneak Attacks . | . . . . . Combat Hostiles . | . . . . . Follow-up Attacks . | . . . . . Damage Inflicted 3969 | . 654 1362 . 1953 Guns 2744 | . 512 1362 . 870 Cannons . | . . . . . Explosions 1225 | . 142 . . 1083 Melee . | . . . . . Ramming . | . . . . . Kinetic 1221 | . . 841 . 380 Thermal 963 | . 142 331 . 490 Explosive 1083 | . . . . 1083 Electromagnetic 702 | . 512 190 . . Impact . | . . . . . Slashing . | . . . . . Piercing . | . . . . . Highest Corruption 6 | . 6 1 1 1 Average Corruption 1 | . 5 1 1 1 Corruption Purged . | . . . . . Corruption Blocked . | . . . . . Effects 35 | . 5 9 1 20 Message Errors 10 | . 1 1 . 8 Matter Fused 9 | . 1 2 . 6 Heat Flow Errors 4 | . 1 1 1 1 Energy Discharges 3 | . 1 1 . 1 Parts Fused 2 | . . 1 . 1 Data Loss (minor) 2 | . . 2 . . Data Loss (major) 1 | . 1 . . . Misfires 3 | . . . . 3 Weapon Failures 1 | . . 1 . . Overload Shots . | . . . . . Overflow Damage 40 | . 6 . . 34 Projectiles . | . . . . . Explosions 40 | . 6 . . 34 Melee . | . . . . . Knockbacks . | . . . . . Impact . | . . . . . Kinetic . | . . . . . Secondary . | . . . . . Self-Inflicted Damage 154 | . 69 . . 85 Shots 6 | . 2 . . 4 Rammed . | . . . . . Targets Rammed . | . . . . . Kicked . | . . . . . Crushed . | . . . . . Highest Temperature 242 | . 183 226 79 242 Average Temperature 45 | . 56 50 45 33 Received Heat Transfer 888 | . 108 450 . 330 Siege Activations . | . . . . . Martial Activations . | . . . . . Shielding Activations . | . . . . . Robots Disrupted . | . . . . . Combat Hostiles . | . . . . . Robots Corrupted . | . . . . . Combat Hostiles . | . . . . . Parts Fried 3 | . 2 1 . . Impact Corruptions . | . . . . . Robots Melted . | . . . . . Combat Hostiles . | . . . . . Parts Melted 9 | . . 3 . 6 Heat Transferred 2917 | . 250 965 . 1702 Parts Sabotaged . | . . . . . Parts Stolen . | . . . . . Parts Stripped . | . . . . . Power Chain Reactions 3 | . 3 . . . Alert | -11 -10 -9 -9 -9 ------- Run | Yrd Mat Mat Sto Gar Maximum Alert Level 4 | . . . . 4 Low Security (%) 64 | 100 100 100 100 11 Level 1 7 | . . . . 18 Level 2 13 | . . . . 32 Level 3 12 | . . . . 31 Level 4 2 | . . . . 6 Level 5 . | . . . . . High Security . | . . . . . Max Security . | . . . . . Peak Influence 1152 | . 180 100 18 1152 Initial 20 | . . 20 18 2 Average 279 | . 69 32 9 623 Influence Increases 2114 | . 410 445 4 1255 Destroy 0b10 Robot/C 1060 | . 220 320 . 520 Destroy 0b10 Robot/NC 25 | . 20 5 . . Destroy Leader 170 | . 50 90 . 30 Allied During Kill 5 | . . . . 5 Successful Hack 46 | . 7 14 4 21 Disable Machine 105 | . 75 15 . 15 Anti-Garrison Action 400 | . . . . 400 Destroy Structure 168 | . 8 1 . 159 Partial Spotted 30 | . 30 . . . Lose Combat Pursuer 105 | . . . . 105 Influence Decreases 957 | . 360 449 46 102 Entered New Map 60 | . . 30 28 2 Time Decay 757 | . 350 389 18 . Lost Part 80 | . 10 30 . 40 Lost Ally 60 | . . . . 60 Squads Dispatched 4 | . 2 2 . . Investigation 1 | . 1 . . . Extermination . | . . . . . Reinforcement 3 | . 1 2 . . Assault . | . . . . . Garrison . | . . . . . Intercept . | . . . . . Searches Triggered . | . . . . . Construction Impeded . | . . . . . Haulers Reinforced . | . . . . . Active Scanning Responses . | . . . . . Cargo Convoy Interrupts . | . . . . . Stealth | -11 -10 -9 -9 -9 --------- Run | Yrd Mat Mat Sto Gar Distress Signals 4 | . 2 2 . . Communications Jammed . | . . . . . Distress Signals . | . . . . . Times Spotted 73 | . 18 26 . 29 Peak Tracking Total 6 | . 6 5 . 5 Tactical Retreats 7 | . . . . 7 Traps | -11 -10 -9 -9 -9 ------- Run | Yrd Mat Mat Sto Gar Traps Triggered 12 | . 5 1 . 6 Indirectly . | . . . . . Trap Hack Attempts . | . . . . . Triggered . | . . . . . Disarmed . | . . . . . Reprogrammed . | . . . . . Reused . | . . . . . Traps Extracted . | . . . . . Installed . | . . . . . Triggered . | . . . . . Machines | -11 -10 -9 -9 -9 ---------- Run | Yrd Mat Mat Sto Gar Machines Disabled 12 | . 5 1 . 6 Max in Single Turn 2 | . 2 1 . 1 Garrison Relay 3 | . . . . 3 Phase Generator 1 | . . . . 1 Machines Repaired . | . . . . . Machines Dismantled . | . . . . . Machines Sabotaged . | . . . . . Overloaded Fab Kills . | . . . . . Hacking | -11 -10 -9 -9 -9 --------- Run | Yrd Mat Mat Sto Gar Machines Accessed 8 | . 1 3 1 3 Terminals 7 | . 1 3 . 3 Fabricators . | . . . . . Repair Stations . | . . . . . Recycling Units . | . . . . . Scanalyzers . | . . . . . Garrison Access 1 | . . . 1 . Total Hacks 14 | . 2 6 1 5 Successful 7 | . 1 3 1 2 Failed 7 | . 1 3 . 3 Catastrophic 2 | . 1 1 . . Database Lockouts . | . . . . . Manual 4 | . . 4 . . Terminals 13 | . 2 6 . 5 Fabricators . | . . . . . Repair Stations . | . . . . . Recycling Units . | . . . . . Scanalyzers . | . . . . . Garrison Access 1 | . . . 1 . Terminal Hacks 4 | . 1 1 . 2 Open Door 1 | . . . . 1 Branch Access Points 1 | . 1 . . . Zone Layout 1 | . . 1 . . Garrison Registry 1 | . . . . 1 Fabricator Hacks . | . . . . . Repair Station Hacks . | . . . . . Recycling Unit Hacks . | . . . . . Scanalyzer . | . . . . . Garrison Access Hacks 1 | . . . 1 . Unlock Access 1 | . . . 1 . Unauthorized Hacks 2 | . . 2 . . Terminals 2 | . . 2 . . Track 1 | . . 1 . . Botnet 1 | . . 1 . . Fabricators . | . . . . . Repair Stations . | . . . . . Recycling Units . | . . . . . Scanalyzers . | . . . . . Garrison Access . | . . . . . Data Cores Recovered . | . . . . . Used . | . . . . . Hacking Detections 6 | . . 3 1 2 Full Trace Events . | . . . . . Feedback Events . | . . . . . Feedback Blocked . | . . . . . Robot Schematics Acquired . | . . . . . Robots Built . | . . . . . Authchips . | . . . . . Time . | . . . . . Total Robot Build Rating . | . . . . . Part Schematics Acquired . | . . . . . Parts Built . | . . . . . Authchips . | . . . . . Time . | . . . . . Total Part Build Rating . | . . . . . Part Studies Acquired . | . . . . . Parts Repaired . | . . . . . Time . | . . . . . Parts Recycled . | . . . . . Recycled Matter . | . . . . . Retrieved Matter . | . . . . . Retrieved Components . | . . . . . Parts Scanalyzed . | . . . . . Part Schematics Acquired . | . . . . . Parts Damaged . | . . . . . Bothacking | -11 -10 -9 -9 -9 ------------ Run | Yrd Mat Mat Sto Gar Used RIF Installer 1 | . . . . 1 Robots Hacked . | . . . . . Non-combat . | . . . . . Combat . | . . . . . Robot Hacks Applied . | . . . . . Relay Couplers Released 10 | . . . . 10 Machine Destruction 10 | . . . . 10 Fabnet Peak Effective % . | . . . . . Robots Rewired 3 | . . . . 3 Allies Hacked . | . . . . . Hacks Repelled . | . . . . . Allies | -11 -10 -9 -9 -9 -------- Run | Yrd Mat Mat Sto Gar Total Allies 3 | . . . . 3 Largest Group 3 | . . . . 3 Highest-Rated Group 65 | . . . . 65 Highest-Rated Ally 25 | . . . . 25 Total Orders . | . . . . . Ally Attacks 8 | . . . . 8 Total Damage 250 | . . . . 250 Kills 2 | . . . . 2 Allies Corrupted . | . . . . . Allies Melted . | . . . . . Intel | -11 -10 -9 -9 -9 ------- Run | Yrd Mat Mat Sto Gar Active Infowar (turns) 4333 | . 703 1656 51 1923 Seismic 4333 | . 703 1656 51 1923 Robot Analysis Total . | . . . . . Derelict Logs Recovered . | . . . . . Drone Launches . | . . . . . Drone Recoveries . | . . . . . Exploration | -11 -10 -9 -9 -9 ------------- Run | Yrd Mat Mat Sto Gar Turns Passed 4742 | 63 1049 1656 51 1923 Spaces Moved 1925 | 59 631 547 21 667 Core 6 | 6 . . . . Treads 1356 | . 121 547 21 667 Legs . | . . . . . Wheels 563 | 53 510 . . . Hover . | . . . . . Flight . | . . . . . Fastest Speed 50 | 50 95 240 240 240 Average Speed 203 | 78 142 240 240 240 Slowest Speed 320 | 95 320 240 240 240 Overloaded Moves . | . . . . . Propulsion Burnouts . | . . . . . Robots Hopped . | . . . . . Potential Cave-ins . | . . . . . Cave-ins Triggered . | . . . . . Exploration Rate (%) 45 | 4 84 52 8 80 Regions Visited 4 Branch Regions 1 Pre-discovered Areas . | . . . . . Known Exits Taken 2 | . . 1 1 . Unknown Exits Taken 2 | 1 1 . . . Scrap Searched . | . . . . . Spaces Dug . | . . . . . Terrain Destroyed 218 | . 6 . . 212 Melee . | . . . . . Projectile . | . . . . . AOE 218 | . 6 . . 212 Terrain Rammed . | . . . . . Walls Destroyed . | . . . . . Machines Disabled . | . . . . . Actions | -11 -10 -9 -9 -9 --------- Run | Yrd Mat Mat Sto Gar Total 2439 | 74 715 757 21 872 Wait 182 | . 24 92 . 66 Move 1922 | 58 630 546 21 667 Hop . | . . . . . Pick Up 48 | 9 17 18 . 4 Fast Attach 4 | 1 2 1 . . Attach 22 | 5 2 11 . 4 Detach . | . . . . . Swap 17 | 1 2 5 . 9 Drop 17 | . 4 10 . 3 Fire 173 | . 33 74 . 66 Melee 1 | . 1 . . . Ram . | . . . . . Kick . | . . . . . Crush . | . . . . . Escape Stasis 6 | . . . . 6 Rewire 47 | . . . . 47 Trap . | . . . . . Miscellaneous . | . . . . . Route ------- -11/Scrapyard -10/Materials (discovered 3 exits: *Mat / *Min x2) -9/Materials (discovered 3 exits: *Mat / [*Min] / *Sto) -9/Storage -9/Garrison (discovered 3 exits: *Rec x3) History --------- Turn | Location | Event 9 | -11/Scrapyard | Discovered new exit (range 15) 64 | -11/Scrapyard | Entered Materials 111 | -10/Materials | Identified exit to Mines 307 | -10/Materials | Build established: Mutant 595 | -10/Materials | Discovered new exit (range 16) 1113 | -10/Materials | Entered another Materials area 1113 | -9/Materials | Evolved 2 slots: Utility x2 1747 | -9/Materials | Discovered new exit (range 9) 1766 | -9/Materials | Identified exit to Materials 2053 | -9/Materials | Discovered new exit (range 8) 2164 | -9/Materials | Identified exit to Storage 2410 | -9/Materials | Discovered new exit (range 10) 2457 | -9/Materials | Core integrity fell below 50% 2769 | -9/Materials | Entered Storage 2820 | -9/Storage | Identified exit to Garrison 2820 | -9/Storage | Entered Garrison 2956 | -9/Garrison | Triggered checkpoint 3067 | -9/Garrison | Phase Generator disabled 3084 | -9/Garrison | Garrison Relay disabled 3314 | -9/Garrison | Triggered checkpoint 3360 | -9/Garrison | Build established: Scavenger-Mutant 3378 | -9/Garrison | Triggered checkpoint 3392 | -9/Garrison | Core integrity fell below 20% 3592 | -9/Garrison | Garrison Relay disabled 3876 | -9/Garrison | Discovered new exit (range 8) 3898 | -9/Garrison | Identified exit to Recycling 3998 | -9/Garrison | Triggered checkpoint 4295 | -9/Garrison | Discovered exit to Recycling (range 10) 4321 | -9/Garrison | Discovered exit to Recycling (range 38) 4321 | -9/Garrison | Discovered exit to Recycling (range 76) 4321 | -9/Garrison | Discovered exit to Recycling (range 7) 4380 | -9/Garrison | Triggered checkpoint 4390 | -9/Garrison | Build established: Mutant 4568 | -9/Garrison | Triggered checkpoint 4620 | -9/Garrison | Installed Relay Interface Framework 4743 | -9/Garrison | Destroyed self with Improved Grenade Launcher Last Messages --------------- Downloaded map data. Downloaded component registry. Downloaded security status. 04368_ System corrupted: Matter fused (-8). 04374_ The unstable cave ceiling collapses. 04380_ Beams of light sweep through the air. An alarm sounds. 04390_ System corrupted: Seismic Detector fused. 04411_ Acquired Relay Coupler [Sentry]. 04451_ System corrupted: FCS attempts to trigger Shotgun. 04451_ System corrupted: Shotgun misfires. 04496_ Acquired 13 matter. 04508_ Acquired 16 matter. 04570_ System corrupted: Energy discharge (-67). Initiating installation procedure... 04620_ ALERT: Garrison interior compromised. 04620_ Relay Interface Framework installed. 04704_ CQT962H&V4&K5X1WHDDUOHVDWGNRHQC8JWRUPFU 04743_ System corrupted: FCS attempts to trigger Imp. Grenade Launcher. 04743_ System corrupted: Imp. Grenade Launcher misfires. [Achievement: Deductive Reasoning] Map ----- +----------------------------------------------------+ | ^^^#?# #???# #???# ### #?????# #??# T#????????? | | #?# #???# ##### #?# #?????# #??# ##????????? | | #?# #???# ## #?# #?????# #??# #?????????? | | ### ##### ##""""### ####### #### #?????????? | | #?????????? | | #?????????? | | [! #?????????? | | ######[#### ## ## ###############?????????? | | ?????#=#### ## ## =###?????????????????????? | | ?????#! [! ^[^ #?????????????????????? | | ?????####* #?????????????????????? | | ????????#% #?????????????????????? | | ????????# * #?????????#######?????? | | ????????### ## =###????????## ## ##????? | | ########### # # [ ########## # #####? | | # ^ # ## #? | | # [ ^^ # ## # #? | | # ### #### [%= ^^ #? | | # %#?# #??# * [# ## #### #### # # #? | | #!=#?# #??##*!## ## #??# #??# ## # # #####? | | # %### #####%=######## #??# #??# # # # #????? | | % =%= !%==! #??????# #??# #??# ### ###????? | | #=%#####*### #??????# #??# #??# ### ###?###### | | #[*#???#[### ###????# #??# #??# ## #??#"" "" | | # #####%# #????# ## # #### ## #####!! # | | # !== # #????# @ ^^ | | # ##????# ^^ | | # ^######## #?????#### #### ############ | | # #??????# #???????????????# #??????????# | | # #??????#######???????????????# #??????????### | | #????????????????????????????# #????????????? | | # #????????????????????????????# #????????????? | | # #????????????????????????????# #????????????? | | # #????????????????????????????# #????????????? | | # #????????????????????????????# #????????????? | | # #????????????????????????????# #????????????? | | ###??????????????????????????# #????????????? | | #??????????????????????????# #????????????? | | #??????????????????????????# #????????????? | | #??????????????????????????# #????????????? | | # #??????????????????????????# #????????????? | | ##??????????????????????????# #????????????? | | ######??????????????????????????# #????????????? | | ????????????????????????????????# #????????????? | | ???????????????????????????###### #????????????? | | ???????????????????????????#"T"## #????????????? | | ???????????????????????????#" ###??????????? | | ???????????????????????????###### #??????????? | | ????????????????????????????????# > #??????????? | | ????????????????????????????????# #??????????? | +----------------------------------------------------+ Best States ------------- Heat Dissipation 28 Energy Generation 12 Energy Capacity 265 Matter Stores 300 Matter Capacity 300 Sight Range 16 Terrain Scan Density 10 Armor Coverage 150 Evasion (%) 44 Targeting Accuracy 6 Recoil Reduction 2 Item Schematics ----------------- None Robot Schematics ------------------ None Fabricated ------------ Nothing Repaired ---------- Nothing Studied --------- None Alien Tech Used ----------------- None Achievements -------------- Deductive Reasoning Challenges ------------ None Game ------ Seed RocketCouplerTerrabomb Manual? 0 Play Time 00:31:53 Cumulative 106.4 hours Start 2025.11.20 @ 15:09:40 End 2025.11.20 @ 18:18:50 Sessions 1 Manual Loads 0 Difficulty Rogue Special Mode None Game No. 142 Rogue 142 Adventurer 0 Explorer 0 Win Type - Total 1 Types 1/0/0/0/0/0/0/0/0/0 Lore% 29 Gallery% 45 Achievement% 31 Wizard Run 0 Options --------- Layout 0 ASCII 0 Keyboard 0 Movement Mouse Keybinds 0 Fullscreen 1 Font 18/Smallcaps Map View 76x50 Zoom Use 0% Tactical HUD 1 Map Filters NONE Filters NONE Steam 1 RUN: 967693a9-705d-4fd3-ad97-1ef6ece7b99b